[Event "35th Roquetas Festival 2024"]
[Site "Roquetas de Mar"]
[Date "2024.01.03"]
[Round "3.6"]
[White "Korneev, Oleg"]
[Black "Perea Fruet, Lorenzo"]
[Result "1-0"]
[ECO "B33"]
[WhiteElo "2474"]
[BlackElo "2323"]
[Annotator "TA"]
[PlyCount "139"]
[EventDate "2024.01.02"]
[EventType "swiss"]
[EventCountry "ESP"]
[SourceTitle "playchess.com"]
[Source "ChessBase"]
[SourceQuality "1"]
[TimeControl "5400+30"]

{[%evp 12,139,39,45,47,38,43,37,21,31,41,36,22,31,43,24,40,24,32,52,52,52,79,72,79,75,114,30,39,14,21,24,35,13,18,10,29,46,27,41,56,53,54,50,120,111,112,120,181,171,230,234,243,229,240,230,253,251,256,247,249,239,229,221,252,231,283,290,379,296,502,499,632,630,621,612,597,573,532,511,530,392,315,43,43,43,43,43,60,43,44,43,43,45,52,60,60,60,60,6,631,7,37,37,12834,12835,12839,12839,12840,12840,12841,12841,12841,12842,12844,12844,12845,12845,12847,12847,12850,12847,12847,12847,12848,12848,12850,12850,12850,27999]} 1. e4 {[%emt 0:02:45]} c5 {[%emt 0:00:35]} 2. Nf3 {[%emt 0:00:03]} Nc6 {[%emt 0:00:05]} 3. d4 {[%emt 0:00:06]} cxd4 {[%emt 0:00:03]} 4. Nxd4 {[%emt 0:00:03]} Nf6 {[%emt 0:00:05]} 5. Nc3 {[%emt 0:00:04]} e6 {[%emt 0:00:02]} 6. Ndb5 {[%emt 0:00:33]} Bc5 {[%emt 0:00:06]} 7. Bf4 {[%emt 0:00:05]} O-O {[%emt 0:00:18] B45: Sicilian Four Knights.} 8. Bc7 $1 {[%emt 0:00:03]} Qe7 {[%emt 0:00:03]} 9. Bd6 $1 {[%emt 0:00:06]} Bxd6 {[%emt 0:00:04] White is slightly better.} 10. Qxd6 {[%emt 0:00:03]} Qd8 {[%emt 0:00:04]} 11. O-O-O {[%emt 0:00:12]} a6 {[%emt 0:00:03]} 12. Nd4 $36 {[%emt 0:00:02][%mdl 2048] White fights for an advantage.} Ne7 {[%emt 0:00:02]} 13. h4 {[%emt 0:00:08][%cal Bh2h4,Bh4h5,Bh5h6][%mdl 32]} b5 {[%emt 0:00:33]} 14. h5 {[%emt 0:03:53]} Bb7 {[%emt 0:01:43] [#]} 15. h6 $146 {[%emt 0:01:10] Hoping for hxg7.} ({Predecessor:} 15. f3 Rc8 16. Kb1 Ne8 17. Qh2 b4 18. Nce2 d6 19. Nc1 e5 20. Nf5 a5 21. g4 {½-½ Bartlomowicz,J (1649)-Makhynia,K (2015) Lazy Baltic Pearl op-A 19th 2023 (5)}) 15... g6 {[%emt 0:00:53]} 16. Nb3 {[%emt 0:13:30] Black is weak on the dark squares} Nc8 {[%emt 0:06:54]} (16... Bxe4 $2 17. Nxe4 Nxe4 18. Qe5 $18 (18. Qxd7 $2 Nxf2 19. Be2 Nxh1 $19)) 17. Qd4 {[%emt 0:02:15] White is much more active. The black rooks are badly placed.} Bc6 {[%emt 0:03:34] [#]} 18. Na5 $1 {[%emt 0:17:09][%mdl 64] And now Nxc6 would win. Deflection} Qe7 {[%emt 0:06:16] [#]} (18... Na7 19. Be2) 19. Nxc6 {[%emt 0:18:20]} (19. f4 $1 $16) 19... dxc6 $11 {[%emt 0:01:31]} 20. Qe5 {[%emt 0:00:03][%cal Od1d7]} (20. e5 $5 {[%cal Re5f6]} Nd5 21. Ne4 $14) 20... Ra7 {[%emt 0:10:58] Prevents Rd7} 21. Be2 {[%emt 0:11:06]} Nb6 {[%emt 0:07:17]} 22. f3 {[%emt 0:05:12]} Ne8 {[%emt 0:07:20]} 23. Rd2 {[%emt 0:06:30]} Nd7 {[%emt 0:03:35]} 24. Qd4 {[%emt 0:01:29]} Rc7 {[%emt 0:04:22]} 25. e5 {[%emt 0:05:14]} c5 {[%emt 0:11:53]} 26. Qf4 {[%emt 0:01:03]} f6 {[%emt 0:07:28]} 27. exf6 {[%emt 0:00:05]} Qxf6 {[%emt 0:01:50]} (27... Ndxf6 $14 28. Qe5 c4) 28. Qxf6 $16 {[%emt 0:00:06]} Ndxf6 {[%emt 0:00:17]} 29. a4 {[%emt 0:04:08]} bxa4 {[%emt 0:02:35]} (29... c4 $16) 30. Bxa6 $18 {[%emt 0:00:44]} a3 {[%emt 0:01:03]} (30... Ra7 {keeps fighting.}) 31. bxa3 {[%emt 0:01:55][%cal Bb2a3,Ba3a4][%mdl 32]} Ra7 {[%emt 0:00:09]} 32. Bc4 {[%emt 0:00:11]} Nc7 {[%emt 0:00:09]} 33. a4 {[%emt 0:00:43]} Nfd5 {[%emt 0:01:27]} 34. Nxd5 {[%emt 0:00:08]} ({But not} 34. Bxd5 $6 exd5 35. Nxd5 Rxa4 $16) 34... Nxd5 {[%emt 0:00:00]} 35. Bxd5 {[%emt 0:00:00]} exd5 {[%emt 0:00:07]} 36. Rxd5 {[%emt 0:00:17]} Rxa4 {[%emt 0:00:30][%mdl 4096] Endgame ...Ra1+ would be deadly. KRR-KRR} 37. Kd2 {[%emt 0:00:30]} (37. Rxc5 $2 {perishes.} Ra1+ 38. Kd2 Rxh1 $19) 37... Rc8 {[%emt 0:00:00]} 38. Rd7 {[%emt 0:03:05] Against Rc7} Rf4 {[%emt 0:04:47]} 39. Ke3 {[%emt 0:00:47]} Ra4 {[%emt 0:00:41]} 40. Rhd1 {[%emt 0:04:20] Rg7+ is the strong threat.} Re8+ $2 {[%emt 0:00:48]} (40... Rh4 {was worth a try.} 41. Rg7+ Kh8) 41. Kf2 {[%emt 0:00:02] Threatening mate with Rg7+.} Rh4 {[%emt 0:00:32]} 42. Rg7+ {[%emt 0:01:12]} Kh8 {[%emt 0:00:08] [#]} 43. Re7 $3 {[%emt 0:00:21][%cal Re7e8][%mdl 576] Deflection, Back Rank} Rb8 {[%emt 0:00:37]} (43... Ra8 44. Rd5) 44. Rd5 {[%emt 0:01:23]} c4 {[%emt 0:00:43]} 45. Rc5 {[%emt 0:00:39]} Rd8 {[%emt 0:01:18]} 46. Rec7 {[%emt 0:01:06]} Rxh6 {[%emt 0:00:27]} 47. Rc8 $2 {[%emt 0:00:02]} (47. Rxc4 $18 {Threatens to win with Re4.} g5 48. Rb7) 47... Rxc8 $14 {[%emt 0:00:10]} 48. Rxc8+ {[%emt 0:00:03] KR-KR} Kg7 {[%emt 0:00:02]} 49. Rxc4 {[%emt 0:00:08]} Kf6 {[%emt 0:00:40]} 50. Re4 {[%emt 0:00:15]} Rh5 {[%emt 0:00:37]} 51. c4 {[%emt 0:00:11]} Ra5 {[%emt 0:00:57]} 52. Re2 {[%emt 0:00:52] aiming for Ke3.} h5 {[%emt 0:01:04]} 53. Rc2 {[%emt 0:00:38]} Rc5 {[%emt 0:01:01]} 54. Ke3 {[%emt 0:01:40] Strongly threatening Kd4.} Ke5 {[%emt 0:00:16]} 55. f4+ {[%emt 0:00:46]} (55. Kd3 $14) 55... Kf5 $2 {[%emt 0:00:34][%mdl 8192]} (55... Ke6 $11) 56. Kf3 $2 {[%emt 0:00:26]} ({White should play} 56. Kd4 $18 Rc8 57. Rc3) 56... Ra5 {[%emt 0:02:06]} 57. Rc3 {[%emt 0:00:13] Black must now prevent c5.} h4 $2 {[%emt 0:04:32][%mdl 8192]} (57... Rc5 $14) 58. c5 $18 {[%emt 0:00:47] White is clearly winning.} Ra4 {[%emt 0:00:40]} 59. c6 {[%emt 0:00:08]} Rxf4+ {[%emt 0:00:05]} 60. Ke3 {[%emt 0:00:01]} Re4+ {[%emt 0:00:16]} 61. Kd3 {[%emt 0:00:01]} Re8 {[%emt 0:00:08]} 62. Kd4 {[%emt 0:00:06]} g5 {[%emt 0:10:04]} 63. c7 {[%emt 0:00:11]} Rc8 {[%emt 0:00:37]} 64. Kd5 {[%emt 0:00:05]} g4 {[%emt 0:00:07]} 65. Kd6 {[%emt 0:00:16]} Rh8 {[%emt 0:00:49]} 66. Kd7 {[%emt 0:01:42]} ({Less strong is} 66. c8=B+ Kf4 $14) 66... Rh7+ {[%emt 0:00:37] [#]} 67. Kc6 $1 {[%emt 0:00:06]} Rh8 {[%emt 0:00:16]} 68. Kb7 {[%emt 0:00:01]} g3 {[%emt 0:01:55]} 69. c8=Q+ {[%emt 0:00:07]} Rxc8 {[%emt 0:00:04]} 70. Rxc8 {[%emt 0:01:07] Weighted Error Value: White=0.31/Black=0.32} (70. Kxc8 $18 Ke4 71. Kd7) 1-0

[Event "35th Roquetas Festival 2024"]
[Site "Roquetas de Mar"]
[Date "2024.01.03"]
[Round "3.7"]
[White "Alshameary Puente, Ismael"]
[Black "Camacho Collados, Marcos"]
[Result "1-0"]
[ECO "E40"]
[WhiteElo "2317"]
[BlackElo "2466"]
[Annotator "TA"]
[PlyCount "74"]
[EventDate "2024.01.02"]
[EventType "swiss"]
[EventCountry "ESP"]
[SourceTitle "playchess.com"]
[Source "ChessBase"]
[SourceQuality "1"]
[TimeControl "5400+30"]

{[%evp 12,74,26,25,27,33,27,25,44,48,44,48,64,64,72,77,57,24,44,0,0,-7,0,-53,-53,-55,0,0,0,-3,19,16,7,-117,-12,-220,0,-22,0,0,26,32,49,57,221,219,248,240,216,167,332,165,314,220,254,220,770,766,796,754,1092,1022,1528,977,1390]} 1. d4 Nf6 2. c4 {[%emt 0:00:08]} e6 {[%emt 0:02:31]} 3. Nc3 {[%emt 0:00:10]} Bb4 {[%emt 0:00:23]} 4. e3 {[%emt 0:00:08]} Bxc3+ {[%emt 0:00:50]} 5. bxc3 {[%emt 0:00:07]} b6 {[%emt 0:00:12]} (5... c5 6. Bd3 b6 7. e4 Bb7 8. f3 d6 9. Ne2 Qe7 10. d5 e5 11. a4 a5 12. Ng3 g6 13. h4 Nbd7 14. Bh6 O-O-O 15. Qd2 Rhg8 16. Bg5 Kc7 17. Nf1 h5 {0-1 Alshameary Puente,I (2307)-Camacho Collados,M (2474) ESP-ch 88th Marbella 2023 (5)}) 6. Bd3 {[%emt 0:00:16]} Bb7 {[%emt 0:00:16]} 7. f3 {[%emt 0:01:15]} Nc6 {[%emt 0:01:09] E43: Nimzo-Indian: Rubinstein: 4...b6.} 8. e4 {[%emt 0:07:13]} d6 {[%emt 0:00:41]} 9. Ne2 {[%emt 0:03:23]} Qe7 {[%emt 0:00:40] White has an edge.} 10. O-O {[%emt 0:04:47]} Nd7 {[%emt 0:01:56]} 11. Be3 {[%emt 0:02:48] [#]} O-O-O $146 {[%emt 0:04:01]} ({Predecessor:} 11... h5 12. Nc1 f6 13. Nb3 Qf7 14. a4 a5 15. f4 Ne7 16. Rb1 f5 17. e5 h4 {1-0 Grachev,B (2593)-Sjugirov,S (2709) RUS-chT Rapid 2022 (6.6)}) 12. Nc1 {[%emt 0:06:13]} f5 {[%emt 0:02:37]} 13. Nb3 {[%emt 0:18:12]} g5 {[%emt 0:15:22]} 14. a4 {[%emt 0:10:46]} f4 {[%emt 0:07:48]} 15. Bf2 {[%emt 0:00:40]} g4 {[%emt 0:02:55]} 16. fxg4 {[%emt 0:17:02]} h5 {[%emt 0:01:30]} 17. gxh5 {[%emt 0:05:14]} ({White should play} 17. Be1 $11) 17... Rdg8 $1 $15 {[%emt 0:00:24] ...Qg5 would be deadly.} 18. Be2 {[%emt 0:01:27]} Qg5 {[%emt 0:05:13]} (18... Qg7 $1 $15 19. Bf3 Rxh5) 19. Bf3 $1 $11 {[%emt 0:00:05]} (19. g3 Nf6 20. Qd3 Na5 $19) 19... Rxh5 {[%emt 0:00:40][%cal Oa7a5][%mdl 64] Deflection} 20. a5 {[%emt 0:02:49] [#]} Qg6 $1 {[%emt 0:02:46] Strongly threatening ...Rg5.} 21. a6 {[%emt 0:02:29] Really sharp!} (21. Bxh5 $2 Qxg2#) (21. Qe2 Rh7) 21... Ba8 {[%emt 0:01:44]} 22. Ra2 {[%emt 0:00:14]} (22. Bxh5 $2 Qxg2#) (22. Qe2 $11 {keeps the balance.}) 22... Rh6 {[%emt 0:13:07]} (22... Nce5 $17 {And now ...Nxf3+ would win.} 23. dxe5 (23. Bxh5 $2 Qxg2#) 23... Nxe5) 23. Qc1 $2 {[%emt 0:03:18] [#]} (23. Re1 $11 {and White has nothing to worry.}) 23... Qf6 $2 {[%emt 0:13:22]} (23... Nce5 $1 $19 {[%cal Re5f3]} 24. dxe5 Nxe5) 24. Be1 {[%emt 0:00:41]} e5 {[%emt 0:03:57][%cal Re5d4][%mdl 1024] Black has compensation.} 25. d5 $36 {[%emt 0:00:42][%mdl 2048] Black is under pressure.} Ne7 {[%emt 0:00:57]} 26. g3 {[%emt 0:02:29]} Qh8 {[%emt 0:07:37]} 27. Rg2 $1 {[%emt 0:01:20]} Nf6 $2 {[%emt 0:01:59]} ({Black should try} 27... fxg3 $14 28. Bxg3 Rhg6) 28. gxf4 $18 {[%emt 0:02:06]} Ng6 {[%emt 0:06:02]} 29. fxe5 {[%emt 0:02:58]} Nxe5 {[%emt 0:00:35]} 30. Qf4 {[%emt 0:01:48]} Kb8 $2 {[%emt 0:03:23]} (30... Nfd7 {might work better.} 31. Nd4 Rhg6) 31. Nd4 {[%emt 0:01:03]} (31. Rxg8+ $142 Qxg8+ 32. Bg3) 31... Nd3 {[%emt 0:00:49]} (31... Rhg6 $142 32. Bg3 Nxc4) 32. Qe3 {[%emt 0:02:00]} Ne5 {[%emt 0:00:32]} 33. Bg3 {[%emt 0:00:55][%cal Oc4c5] Black must now prevent c5!} Rxg3 $2 (33... Nfd7 34. Qe2 Re8) 34. Rxg3 {[%emt 0:00:21] White is clearly winning.} (34. hxg3 $2 {loses.} Rh1+ 35. Kf2 Nfg4+ 36. Bxg4 Nxg4+ 37. Ke2 Nxe3 38. Rxh1 Qxh1 $19) 34... Rxh2 {[%emt 0:00:37]} 35. Bg2 {[%emt 0:01:58][%cal Of1f6] Rxf6! is the strong threat.} Nfg4 {[%emt 0:00:53]} 36. Qe2 {[%emt 0:00:17]} Rh4 {[%emt 0:00:26]} 37. Nf5 {[%emt 0:00:17]} Nh2 {[%emt 0:01:06] A cool game by Alshameary Puente.   Weighted Error Value: White=0.37/Black=0.54} 1-0

[Event "35th Roquetas Festival 2024"]
[Site "Roquetas de Mar"]
[Date "2024.01.03"]
[Round "3.8"]
[White "Macias Pino, Diego"]
[Black "Garrido Diaz, Jose Antonio"]
[Result "1-0"]
[ECO "B40"]
[WhiteElo "2456"]
[BlackElo "2291"]
[Annotator "RC"]
[PlyCount "33"]
[EventDate "2024.01.02"]
[EventType "swiss"]
[EventCountry "ESP"]
[SourceTitle "playchess.com"]
[Source "ChessBase"]
[SourceQuality "1"]
[TimeControl "5400+30"]

1. e4 {[%emt 0:00:54]} c5 {[%emt 0:00:07]} 2. Nf3 {[%emt 0:00:54]} e6 {[%emt 0:00:12]} 3. d4 {[%emt 0:00:06]} cxd4 {[%emt 0:00:04]} 4. Nxd4 {[%emt 0:00:15]} Nf6 {[%emt 0:00:04]} 5. Nc3 {[%emt 0:00:04]} Nc6 {[%emt 0:00:02]} 6. Ndb5 {[%emt 0:00:09]} Bb4 {[%emt 0:00:11]} 7. Bf4 {[%emt 0:06:32]} Nxe4 {[%emt 0:00:10]} 8. Qf3 {[%emt 0:00:04]} d5 {[%emt 0:00:05]} 9. Nc7+ {[%emt 0:00:03]} Kf8 {[%emt 0:00:04]} 10. Nxa8 {[%emt 0:00:04]} e5 {[%emt 0:00:28]} 11. Bd2 {[%emt 0:00:02]} Nd4 {[%emt 0:00:05]} 12. Qd3 {[%emt 0:00:03]} Qh4 {[%emt 0:00:09]} 13. Nxe4 {[%emt 0:00:11]} Bxd2+ {[%emt 0:04:28]} 14. Nxd2 {[%emt 0:01:23]} Bf5 {[%emt 0:00:01]} 15. Qa3+ {[%emt 0:00:07]} Kg8 {[%emt 0:00:08]} 16. Bd3 {[%emt 0:01:23]} e4 {[%emt 0:00:10]} 17. Qa4 {[%emt 0:00:18]} 1-0

[Event "35th Roquetas Festival 2024"]
[Site "Roquetas de Mar"]
[Date "2024.01.03"]
[Round "3.9"]
[White "Del Prado Rodriguez, Xulio"]
[Black "Espinosa Aranda, Angel"]
[Result "1-0"]
[ECO "E49"]
[WhiteElo "2294"]
[BlackElo "2431"]
[Annotator "RC"]
[PlyCount "45"]
[EventDate "2024.01.02"]
[EventType "swiss"]
[EventCountry "ESP"]
[SourceTitle "playchess.com"]
[Source "ChessBase"]
[SourceQuality "1"]
[TimeControl "5400+30"]

1. d4 {[%emt 0:00:49]} Nf6 {[%emt 0:00:14]} 2. c4 {[%emt 0:00:08]} e6 {[%emt 0:00:26]} 3. Nc3 {[%emt 0:00:18]} Bb4 {[%emt 0:00:24]} 4. e3 {[%emt 0:00:14]} O-O {[%emt 0:00:35]} 5. Bd3 {[%emt 0:00:27]} d5 {[%emt 0:04:05]} 6. a3 {[%emt 0:00:30]} Bxc3+ {[%emt 0:01:25]} 7. bxc3 {[%emt 0:00:11]} dxc4 {[%emt 0:00:04]} 8. Bxc4 {[%emt 0:00:16]} c5 {[%emt 0:00:06]} 9. Nf3 {[%emt 0:00:11]} Qc7 {[%emt 0:00:30]} 10. Be2 {[%emt 0:00:08]} b6 {[%emt 0:00:22]} 11. Bb2 {[%emt 0:00:08]} Ba6 {[%emt 0:00:36]} 12. c4 {[%emt 0:01:05]} cxd4 {[%emt 0:04:39]} 13. Nxd4 {[%emt 0:00:14]} Rd8 {[%emt 0:03:44]} 14. Bf3 {[%emt 0:00:12]} Bb7 {[%emt 0:00:10]} 15. Nb5 {[%emt 0:00:06]} Rxd1+ {[%emt 0:12:17]} 16. Rxd1 {[%emt 0:00:09]} Qe7 {[%emt 0:00:02]} 17. Bxb7 {[%emt 0:00:11]} a6 {[%emt 0:00:02]} 18. Nd6 {[%emt 0:01:47]} Nbd7 {[%emt 0:09:17]} 19. Bxa8 {[%emt 0:00:18]} h5 {[%emt 0:00:13]} 20. O-O {[%emt 0:01:36]} Nc5 {[%emt 0:05:54]} 21. Bxf6 {[%emt 0:00:47]} gxf6 {[%emt 0:00:21]} 22. Bf3 {[%emt 0:01:00]} h4 {[%emt 0:00:27]} 23. Bh5 {[%emt 0:00:48]} 1-0

[Event "35th Roquetas Festival 2024"]
[Site "Roquetas de Mar"]
[Date "2024.01.03"]
[Round "3.10"]
[White "Stremavicius, Pijus"]
[Black "Iglesias Ferreira, Andres"]
[Result "1-0"]
[ECO "B67"]
[WhiteElo "2393"]
[BlackElo "2278"]
[Annotator "RC"]
[PlyCount "35"]
[EventDate "2024.01.02"]
[EventType "swiss"]
[EventCountry "ESP"]
[SourceTitle "playchess.com"]
[Source "ChessBase"]
[SourceQuality "1"]
[TimeControl "5400+30"]

1. e4 {[%emt 0:00:21]} c5 {[%emt 0:00:43]} 2. Nf3 {[%emt 0:00:07]} d6 {[%emt 0:00:16]} 3. d4 {[%emt 0:00:13]} cxd4 {[%emt 0:00:10]} 4. Nxd4 {[%emt 0:00:05]} Nf6 {[%emt 0:00:14]} 5. Nc3 {[%emt 0:00:05]} Nc6 {[%emt 0:00:57]} 6. Bg5 {[%emt 0:00:17]} e6 {[%emt 0:00:13]} 7. Qd2 {[%emt 0:00:07]} a6 {[%emt 0:00:12]} 8. O-O-O {[%emt 0:00:06]} Bd7 {[%emt 0:00:11]} 9. Kb1 {[%emt 0:00:14]} Nxd4 {[%emt 0:00:47]} 10. Qxd4 {[%emt 0:00:07]} Be7 {[%emt 0:00:12]} 11. h4 {[%emt 0:02:08]} h5 {[%emt 0:02:08]} 12. f4 {[%emt 0:01:14]} Bc6 {[%emt 0:00:36]} 13. Be2 {[%emt 0:03:20]} b5 {[%emt 0:05:56]} 14. Bf3 {[%emt 0:03:30]} b4 {[%emt 0:04:16]} 15. Qxb4 {[%emt 0:01:12]} d5 {[%emt 0:00:35]} 16. Qd4 {[%emt 0:00:36]} dxe4 {[%emt 0:02:17]} 17. Nxe4 {[%emt 0:02:22]} Rc8 {[%emt 0:20:10]} 18. Nxf6+ {[%emt 0:01:11]} 1-0

[Event "35th Roquetas Festival 2024"]
[Site "Roquetas de Mar"]
[Date "2024.01.03"]
[Round "3.11"]
[White "Fiorito, Fabian"]
[Black "Fiorito, Francisco"]
[Result "1/2-1/2"]
[ECO "C43"]
[WhiteElo "2274"]
[BlackElo "2370"]
[Annotator "RC"]
[PlyCount "25"]
[EventDate "2024.01.02"]
[EventType "swiss"]
[EventCountry "ESP"]
[SourceTitle "playchess.com"]
[Source "ChessBase"]
[SourceQuality "1"]
[TimeControl "5400+30"]

1. e4 {[%emt 0:00:09]} e5 {[%emt 0:00:07]} 2. Nf3 {[%emt 0:00:37]} Nf6 {[%emt 0:00:08]} 3. d4 {[%emt 0:01:04]} Nxe4 {[%emt 0:00:06]} 4. Bd3 {[%emt 0:00:54]} d5 {[%emt 0:00:06]} 5. Nxe5 {[%emt 0:00:46]} Nd7 {[%emt 0:00:08]} 6. Nxf7 {[%emt 0:01:00]} Kxf7 {[%emt 0:00:10]} 7. Qh5+ {[%emt 0:00:06]} Ke6 {[%emt 0:00:06]} 8. Qg4+ {[%emt 0:00:21]} Kf7 {[%emt 0:00:06]} 9. Qh5+ {[%emt 0:00:10]} Ke6 {[%emt 0:00:04]} 10. Qg4+ {[%emt 0:00:10]} Kf7 {[%emt 0:00:04]} 11. Qh5+ {[%emt 0:00:08]} Ke6 {[%emt 0:00:05]} 12. Qg4+ {[%emt 0:00:24]} Kf7 {[%emt 0:00:04]} 13. Qh5+ {[%emt 0:00:05]} 1/2-1/2

[Event "35th Roquetas Festival 2024"]
[Site "Roquetas de Mar"]
[Date "2024.01.03"]
[Round "3.12"]
[White "Habans Aguerrea, Javier"]
[Black "Jimenez Freniche, David"]
[Result "1-0"]
[ECO "A34"]
[WhiteElo "2368"]
[BlackElo "1849"]
[Annotator "RC"]
[PlyCount "73"]
[EventDate "2024.01.02"]
[EventType "swiss"]
[EventCountry "ESP"]
[SourceTitle "playchess.com"]
[Source "ChessBase"]
[SourceQuality "1"]
[TimeControl "5400+30"]

1. c4 {[%emt 0:00:03]} c5 {[%emt 0:00:00]} 2. Nf3 {[%emt 0:00:13]} Nf6 {[%emt 0:00:32]} 3. Nc3 {[%emt 0:00:12]} d5 {[%emt 0:01:31]} 4. cxd5 {[%emt 0:00:07]} Nxd5 {[%emt 0:00:01]} 5. e4 {[%emt 0:00:09]} Nxc3 {[%emt 0:00:47]} 6. dxc3 {[%emt 0:02:23]} Qxd1+ {[%emt 0:02:33]} 7. Kxd1 {[%emt 0:00:02]} a6 {[%emt 0:05:54]} 8. h3 {[%emt 0:14:17]} Nc6 {[%emt 0:10:02]} 9. Be3 {[%emt 0:02:19]} b6 {[%emt 0:03:33]} 10. Kc2 {[%emt 0:03:47]} g6 {[%emt 0:06:32]} 11. Nd2 {[%emt 0:01:17]} Ne5 {[%emt 0:08:55]} 12. a4 {[%emt 0:01:31]} Nd7 {[%emt 0:08:39]} 13. Be2 {[%emt 0:04:51]} Bb7 {[%emt 0:02:43]} 14. f3 {[%emt 0:00:25]} Bg7 15. Rhd1 {[%emt 0:01:10]} O-O {[%emt 0:06:20]} 16. Nc4 {[%emt 0:00:46]} Bc6 {[%emt 0:00:42]} 17. Rxd7 {[%emt 0:00:14]} Bxd7 {[%emt 0:01:52]} 18. Nxb6 {[%emt 0:00:02]} Rad8 {[%emt 0:04:33]} 19. Nxd7 {[%emt 0:00:09]} Rxd7 {[%emt 0:00:02]} 20. Bxa6 {[%emt 0:00:10]} Rfd8 {[%emt 0:05:44]} 21. Bb5 {[%emt 0:04:52]} Rc7 {[%emt 0:02:17]} 22. a5 {[%emt 0:00:15]} Be5 {[%emt 0:05:54]} 23. a6 {[%emt 0:02:04]} Kf8 {[%emt 0:01:54]} 24. f4 {[%emt 0:02:18]} Bd4 {[%emt 0:01:44]} 25. Bd2 {[%emt 0:00:33]} Bg7 {[%emt 0:00:46]} 26. Bc4 {[%emt 0:01:45]} e6 {[%emt 0:01:30]} 27. Ra5 {[%emt 0:02:36]} Bf6 {[%emt 0:04:26]} 28. e5 {[%emt 0:00:48]} Be7 {[%emt 0:00:14]} 29. Be3 {[%emt 0:01:01]} Ra8 {[%emt 0:01:01]} 30. g4 {[%emt 0:05:56]} Rc6 {[%emt 0:02:37]} 31. Ra1 {[%emt 0:01:19]} Rd8 {[%emt 0:01:57]} 32. f5 {[%emt 0:00:47]} exf5 {[%emt 0:04:02]} 33. gxf5 {[%emt 0:01:50]} gxf5 {[%emt 0:00:19]} 34. a7 {[%emt 0:02:29]} Rcc8 {[%emt 0:03:38]} 35. Bh6+ {[%emt 0:01:08]} Kg8 {[%emt 0:00:05]} 36. Rg1+ {[%emt 0:00:08]} Kh8 {[%emt 0:00:07]} 37. Bxf7 {[%emt 0:00:07]} 1-0

[Event "35th Roquetas Festival 2024"]
[Site "Roquetas de Mar"]
[Date "2024.01.03"]
[Round "3.13"]
[White "Bernadskiy, Vitaliy"]
[Black "Rodriguez Lopez, Rafael"]
[Result "1-0"]
[ECO "B90"]
[WhiteElo "2566"]
[BlackElo "2152"]
[Annotator "TA"]
[PlyCount "49"]
[EventDate "2024.01.02"]
[EventType "swiss"]
[EventCountry "ESP"]
[SourceTitle "playchess.com"]
[Source "ChessBase"]
[SourceQuality "1"]
[TimeControl "5400+30"]

{[%evp 12,49,16,8,3,2,0,0,10,12,34,9,15,11,8,0,22,26,29,13,15,12,24,26,40,8,61,51,50,41,355,340,385,383,436,419,611,561,943,924]} 1. e4 {[%emt 0:00:04]} c5 {[%emt 0:00:12]} 2. Nf3 {[%emt 0:00:05]} d6 {[%emt 0:00:06]} 3. d4 {[%emt 0:00:05]} cxd4 {[%emt 0:00:04]} 4. Nxd4 {[%emt 0:00:03]} Nf6 {[%emt 0:00:07]} 5. Nc3 {[%emt 0:00:03]} a6 {[%emt 0:00:04]} 6. a4 {[%emt 0:00:10]} e6 {[%emt 0:00:53]} 7. Bd3 {[%emt 0:00:15] 7.a5 is the modern continuation.} Nc6 {[%emt 0:01:19] B90: Sicilian Najdorf: Unusual White 6th moves, 6 Be3 Ng4 and 6 Be3 e5.} 8. Nxc6 {[%emt 0:02:06]} bxc6 {[%emt 0:00:11]} 9. a5 {[%emt 0:00:04]} Bb7 {[%emt 0:02:09] The position is equal.} 10. O-O {[%emt 0:01:49]} c5 {[%emt 0:00:38] [#]} 11. Qf3 $146 {[%emt 0:01:17]} ({Predecessor:} 11. Bf4 Qc7 12. Qe2 Nd7 13. Bc4 Be7 14. Rfd1 O-O 15. Qd2 Ne5 16. Bxe5 dxe5 17. Qd7 {1-0 Kamsky,G (2634)-Martinez Alcantara,J (2611) Titled Tuesday intern op 14th Nov Early blitz 2023 (10)}) 11... Be7 {[%emt 0:01:13]} 12. Qg3 {[%emt 0:01:39]} O-O {[%emt 0:01:17][%cal Oc5c4]} 13. Rd1 {[%emt 0:00:44]} Qc7 {[%emt 0:01:29]} 14. Bh6 {[%emt 0:01:09][%csl Gh6][%cal Rg3g7] [#]} Ne8 {[%emt 0:00:11]} 15. Bf4 {[%emt 0:00:59]} Rd8 {[%emt 0:02:08]} 16. Bc4 {[%emt 0:04:44][%cal Bd3c4,Bc4e2,Be2f3][%mdl 32]} Bf6 {[%emt 0:08:43]} 17. Re1 $36 {[%emt 0:05:12][%mdl 2048] Black is under pressure.} Qc6 {[%emt 0:01:08]} 18. Be2 {[%emt 0:01:58]} d5 {[%emt 0:03:38]} ({Don't do} 18... Bxc3 19. bxc3 Qc8 20. f3 $14) (18... Rb8 $11) 19. exd5 $14 {[%emt 0:02:04] White is more active.} exd5 {[%emt 0:00:19]} 20. Bf3 {[%emt 0:00:20] aiming for Nxd5.} Bd4 $2 {[%emt 0:06:11][%mdl 8192] [#] This costs Black the game.} (20... c4 $14) 21. Nxd5 $1 $18 {Ne7+ is the strong threat.} Rxd5 {[%emt 0:03:01]} 22. c4 {[%emt 0:02:59][%mdl 64] Prevents Qb5. Pin} Nf6 {[%emt 0:00:06]} 23. cxd5 {[%emt 0:00:07]} ({Weaker is} 23. Bxd5 Nxd5 24. cxd5 Qxd5 $18) 23... Nxd5 (23... Qb5 $142 24. Rad1 g6) 24. Be5 {[%emt 0:00:04]} Bxe5 {[%emt 0:01:41]} 25. Rxe5 {[%emt 0:00:20] Weighted Error Value: White=0.08 (flawless) /Black=0.65} 1-0